[Event "Titled Tuesday Blitz November 15 Early 2022"]
[White "Adel, Sara"]
[Black "Osiecki, Stanislaw"]
[WhiteFideId "10616764"]
[BlackFideId "1102990"]
[WhiteElo "1994"]
[BlackElo "2088"]
[Result "0-1"]
[Round "08"]
[TimeControl "180+1"]
[Date "2022.11.16"]
[WhiteClock "0:00:03"]
[BlackClock "0:00:09"]

1. e4 {[%clk 0:03:00]}  e6 {[%clk 0:02:59]} 2. d4 {[%clk 0:03:00]}  d5 {[%clk 0:02:59]} 3. Nd2 {[%clk 0:03:01]}  c5 {[%clk 0:02:59]} 4. exd5 {[%clk 0:02:59]}  exd5 {[%clk 0:02:57]} 5. Bb5+ {[%clk 0:03:00]}  Bd7 {[%clk 0:02:57]} 6. Qe2+ {[%clk 0:03:00]}  Be7 {[%clk 0:02:57]} 7. Ngf3 {[%clk 0:02:59]}  Nf6 {[%clk 0:02:54]} 8. dxc5 {[%clk 0:02:58]}  O-O {[%clk 0:02:54]} 9. Bxd7 {[%clk 0:02:58]}  Nbxd7 {[%clk 0:02:53]} 10. O-O {[%clk 0:02:57]}  Re8 {[%clk 0:02:54]} 11. Nb3 {[%clk 0:02:55]}  Nxc5 {[%clk 0:02:53]} 12. Nxc5 {[%clk 0:02:53]}  Bxc5 {[%clk 0:02:53]} 13. Qd3 {[%clk 0:02:54]}  Qb6 {[%clk 0:02:51]} 14. Bg5 {[%clk 0:02:54]}  Ne4 {[%clk 0:02:50]} 15. Bh4 {[%clk 0:02:53]}  Qxb2 {[%clk 0:02:34]} 16. Rab1 {[%clk 0:02:52]}  Qxa2 {[%clk 0:02:22]} 17. Rxb7 {[%clk 0:02:51]}  Rab8 {[%clk 0:02:15]} 18. Qb5 {[%clk 0:02:44]}  Bb6 {[%clk 0:02:05]} 19. Ne5 {[%clk 0:02:31]}  d4 {[%clk 0:01:29]} 20. Qd7 {[%clk 0:02:16]}  Rf8 {[%clk 0:01:21]} 21. Be7 {[%clk 0:01:49]}  Rfe8 {[%clk 0:01:00]} 22. Bb4 {[%clk 0:01:06]}  Qe6 {[%clk 0:00:54]} 23. Qxe6 {[%clk 0:00:31]}  fxe6 {[%clk 0:00:51]} 24. Rxb8 {[%clk 0:00:21]}  Rxb8 {[%clk 0:00:50]} 25. Re1 {[%clk 0:00:21]}  Nf6 {[%clk 0:00:39]} 26. Nc6 {[%clk 0:00:18]}  Re8 {[%clk 0:00:36]} 27. g3 {[%clk 0:00:15]}  Kf7 {[%clk 0:00:34]} 28. Ra1 {[%clk 0:00:12]}  Nd5 {[%clk 0:00:32]} 29. Ne5+ {[%clk 0:00:12]}  Kf6 {[%clk 0:00:30]} 30. Bd6 {[%clk 0:00:13]}  Rd8 {[%clk 0:00:23]} 31. Ng4+ {[%clk 0:00:14]}  Kg5 {[%clk 0:00:23]} 32. h4+ {[%clk 0:00:09]}  Kxg4 {[%clk 0:00:22]} 33. Be5 {[%clk 0:00:08]}  Nf6 {[%clk 0:00:21]} 34. Re1 {[%clk 0:00:08]}  Rd5 {[%clk 0:00:20]} 35. Bxf6 {[%clk 0:00:08]}  gxf6 {[%clk 0:00:19]} 36. Rxe6 {[%clk 0:00:09]}  Kf5 {[%clk 0:00:18]} 37. Re7 {[%clk 0:00:09]}  h5 {[%clk 0:00:17]} 38. Kg2 {[%clk 0:00:10]}  Re5 {[%clk 0:00:16]} 39. Rh7 {[%clk 0:00:10]}  Ke4 {[%clk 0:00:15]} 40. f4 {[%clk 0:00:09]}  Rf5 {[%clk 0:00:14]} 41. Rg7 {[%clk 0:00:09]}  Ra5 {[%clk 0:00:13]} 42. Re7+ {[%clk 0:00:10]}  Kd5 {[%clk 0:00:13]} 43. f5 {[%clk 0:00:10]}  Kc4 {[%clk 0:00:12]} 44. g4 {[%clk 0:00:05]}  hxg4 {[%clk 0:00:11]} 45. h5 {[%clk 0:00:02]}  Ra2 {[%clk 0:00:10]} 46. h6 {[%clk 0:00:02]}  Rxc2+ {[%clk 0:00:10]} 47. Kg3 {[%clk 0:00:03]}  Rc1 {[%clk 0:00:09]} 48. h7 {[%clk 0:00:02]}  Rh1 {[%clk 0:00:09]} 49. Kxg4 {[%clk 0:00:03]}  d3 {[%clk 0:00:09]} 0-1


[Site "https://www.chess.com"]

[Event "Titled Tuesday Blitz November 15 Early 2022"]
[White "Adithya A Chullikkad"]
[Black "Smietanska, Wiktoria"]
[WhiteFideId "45078734"]
[BlackFideId "21869359"]
[WhiteElo "2106"]
[BlackElo "1695"]
[Result "1-0"]
[Round "08"]
[TimeControl "180+1"]
[Date "2022.11.16"]
[WhiteClock "0:01:29"]
[BlackClock "0:00:02"]

1. d4 {[%clk 0:02:57]}  Nf6 {[%clk 0:02:59]} 2. Bf4 {[%clk 0:02:55]}  d5 {[%clk 0:02:59]} 3. e3 {[%clk 0:02:52]}  c5 {[%clk 0:02:59]} 4. c3 {[%clk 0:02:51]}  Nc6 {[%clk 0:02:59]} 5. h3 {[%clk 0:02:51]}  Qb6 {[%clk 0:02:58]} 6. Qb3 {[%clk 0:02:50]}  c4 {[%clk 0:02:58]} 7. Qc2 {[%clk 0:02:50]}  Bf5 {[%clk 0:02:57]} 8. Qc1 {[%clk 0:02:43]}  e6 {[%clk 0:02:51]} 9. g4 {[%clk 0:02:43]}  Bg6 {[%clk 0:02:50]} 10. f3 {[%clk 0:02:43]}  Nd7 {[%clk 0:02:48]} 11. h4 {[%clk 0:02:43]}  h5 {[%clk 0:02:46]} 12. g5 {[%clk 0:02:37]}  e5 {[%clk 0:02:45]} 13. Bxe5 {[%clk 0:02:36]}  Ndxe5 {[%clk 0:02:45]} 14. dxe5 {[%clk 0:02:37]}  Nxe5 {[%clk 0:02:46]} 15. f4 {[%clk 0:02:35]}  Nd3+ {[%clk 0:02:42]} 16. Bxd3 {[%clk 0:02:36]}  Bxd3 {[%clk 0:02:42]} 17. Nf3 {[%clk 0:02:34]}  Bc5 {[%clk 0:02:42]} 18. Nd4 {[%clk 0:02:34]}  O-O {[%clk 0:02:39]} 19. Nd2 {[%clk 0:02:33]}  Rfe8 {[%clk 0:02:38]} 20. N2f3 {[%clk 0:02:34]}  Be4 {[%clk 0:02:16]} 21. Kf2 {[%clk 0:02:34]}  Re7 {[%clk 0:02:10]} 22. Re1 {[%clk 0:02:34]}  Rae8 {[%clk 0:02:10]} 23. a4 {[%clk 0:02:28]}  Qc7 {[%clk 0:01:32]} 24. Qd1 {[%clk 0:02:20]}  Qd7 {[%clk 0:01:26]} 25. Ng1 {[%clk 0:02:05]}  g6 {[%clk 0:01:14]} 26. Qe2 {[%clk 0:02:01]}  Bd3 {[%clk 0:01:11]} 27. Qf3 {[%clk 0:02:01]}  Bxd4 {[%clk 0:00:57]} 28. cxd4 {[%clk 0:01:54]}  Be4 {[%clk 0:00:53]} 29. Qg3 {[%clk 0:01:53]}  Qc7 {[%clk 0:00:49]} 30. Ne2 {[%clk 0:01:50]}  Qb6 {[%clk 0:00:46]} 31. Ra2 {[%clk 0:01:48]}  Qb3 {[%clk 0:00:42]} 32. Nc3 {[%clk 0:01:48]}  a6 {[%clk 0:00:28]} 33. Re2 {[%clk 0:01:47]}  Rd7 {[%clk 0:00:21]} 34. Ra3 {[%clk 0:01:46]}  Qb4 {[%clk 0:00:20]} 35. a5 {[%clk 0:01:45]}  Bd3 {[%clk 0:00:19]} 36. Rd2 {[%clk 0:01:42]}  Qd6 {[%clk 0:00:17]} 37. Ra1 {[%clk 0:01:39]}  Rde7 {[%clk 0:00:17]} 38. Re1 {[%clk 0:01:39]}  Be4 {[%clk 0:00:13]} 39. Rde2 {[%clk 0:01:36]}  Qb4 {[%clk 0:00:11]} 40. Ra1 {[%clk 0:01:36]}  Bd3 {[%clk 0:00:08]} 41. Nxd5 {[%clk 0:01:36]}  Qd6 {[%clk 0:00:05]} 42. Nxe7+ {[%clk 0:01:36]}  Qxe7 {[%clk 0:00:05]} 43. Rd2 {[%clk 0:01:35]}  Qb4 {[%clk 0:00:04]} 44. Ke1 {[%clk 0:01:33]}  c3 {[%clk 0:00:03]} 45. bxc3 {[%clk 0:01:33]}  Qxc3 {[%clk 0:00:04]} 46. Rd1 {[%clk 0:01:33]}  Bc2 {[%clk 0:00:03]} 47. Ke2 {[%clk 0:01:29]}  Bxd1+ {[%clk 0:00:03]} 48. Rxd1 {[%clk 0:01:29]}  Qxa5 {[%clk 0:00:03]} 49. Qf3 {[%clk 0:01:28]}  Qb5+ {[%clk 0:00:03]} 50. Kf2 {[%clk 0:01:27]}  Re7 {[%clk 0:00:03]} 51. d5 {[%clk 0:01:26]}  Qd7 {[%clk 0:00:03]} 52. d6 {[%clk 0:01:26]}  Re6 {[%clk 0:00:03]} 53. Qd5 {[%clk 0:01:27]}  Kg7 {[%clk 0:00:02]} 54. Qc5 {[%clk 0:01:27]}  b5 {[%clk 0:00:02]} 55. Qc3+ {[%clk 0:01:27]}  Kg8 {[%clk 0:00:02]} 56. Qc7 {[%clk 0:01:28]}  Qxc7 {[%clk 0:00:01]} 57. dxc7 {[%clk 0:01:28]}  Rc6 {[%clk 0:00:01]} 58. Rd8+ {[%clk 0:01:28]}  Kg7 {[%clk 0:00:02]} 59. c8=Q {[%clk 0:01:28]}  Rxc8 {[%clk 0:00:02]} 60. Rxc8 {[%clk 0:01:29]} 1-0


[Site "https://www.chess.com"]

[Event "Titled Tuesday Blitz November 15 Early 2022"]
[White "Ambartsumova, Karina"]
[Black "Stribuk, Artiom"]
[WhiteFideId "4166299"]
[BlackFideId "13515659"]
[WhiteElo "2319"]
[BlackElo "2371"]
[Result "1-0"]
[Round "08"]
[TimeControl "180+1"]
[Date "2022.11.16"]
[WhiteClock "0:00:12"]
[BlackClock "0:00:03"]

1. Nf3 {[%clk 0:03:00]}  Nf6 {[%clk 0:02:59]} 2. d4 {[%clk 0:02:59]}  g6 {[%clk 0:02:57]} 3. g3 {[%clk 0:02:59]}  Bg7 {[%clk 0:02:51]} 4. Bg2 {[%clk 0:02:59]}  O-O {[%clk 0:02:52]} 5. O-O {[%clk 0:03:00]}  d5 {[%clk 0:02:46]} 6. c4 {[%clk 0:03:00]}  c6 {[%clk 0:02:46]} 7. b3 {[%clk 0:03:00]}  Bf5 {[%clk 0:02:43]} 8. Bb2 {[%clk 0:03:00]}  Ne4 {[%clk 0:02:41]} 9. Nbd2 {[%clk 0:02:36]}  Qa5 {[%clk 0:02:37]} 10. Nxe4 {[%clk 0:02:26]}  Bxe4 {[%clk 0:02:37]} 11. Bh3 {[%clk 0:02:04]}  Bxf3 {[%clk 0:02:15]} 12. exf3 {[%clk 0:02:03]}  e6 {[%clk 0:02:16]} 13. Qc2 {[%clk 0:01:57]}  Nd7 {[%clk 0:02:13]} 14. f4 {[%clk 0:01:50]}  Qb6 {[%clk 0:01:57]} 15. Rad1 {[%clk 0:01:47]}  a5 {[%clk 0:01:52]} 16. c5 {[%clk 0:01:31]}  Qc7 {[%clk 0:01:35]} 17. Rfe1 {[%clk 0:01:31]}  b5 {[%clk 0:01:22]} 18. a3 {[%clk 0:01:26]}  Rfe8 {[%clk 0:01:13]} 19. Bg2 {[%clk 0:01:24]}  Qd8 {[%clk 0:01:10]} 20. h4 {[%clk 0:01:24]}  h5 {[%clk 0:01:10]} 21. Bf3 {[%clk 0:01:24]}  Qf6 {[%clk 0:00:42]} 22. Kg2 {[%clk 0:01:21]}  Qf5 {[%clk 0:00:41]} 23. Qc1 {[%clk 0:01:09]}  Bh6 {[%clk 0:00:33]} 24. Qc3 {[%clk 0:01:04]}  Reb8 {[%clk 0:00:24]} 25. Qe3 {[%clk 0:00:50]}  Qf6 {[%clk 0:00:22]} 26. Qe2 {[%clk 0:00:47]}  Bg7 {[%clk 0:00:21]} 27. Rc1 {[%clk 0:00:41]}  Re8 {[%clk 0:00:19]} 28. Rh1 {[%clk 0:00:38]}  Qd8 {[%clk 0:00:16]} 29. g4 {[%clk 0:00:30]}  hxg4 {[%clk 0:00:16]} 30. Bxg4 {[%clk 0:00:31]}  f5 {[%clk 0:00:12]} 31. Bf3 {[%clk 0:00:29]}  Bh6 {[%clk 0:00:11]} 32. Rcg1 {[%clk 0:00:18]}  Kh7 {[%clk 0:00:09]} 33. h5 {[%clk 0:00:17]}  g5 {[%clk 0:00:09]} 34. fxg5 {[%clk 0:00:16]}  Bxg5 {[%clk 0:00:09]} 35. Kf1 {[%clk 0:00:15]}  Qf6 {[%clk 0:00:08]} 36. Qd3 {[%clk 0:00:14]}  Rg8 {[%clk 0:00:07]} 37. Rg2 {[%clk 0:00:14]}  Bh6 {[%clk 0:00:07]} 38. Rhg1 {[%clk 0:00:14]}  Rxg2 {[%clk 0:00:07]} 39. Rxg2 {[%clk 0:00:15]}  Rg8 {[%clk 0:00:08]} 40. Rxg8 {[%clk 0:00:14]}  Kxg8 {[%clk 0:00:09]} 41. Ke2 {[%clk 0:00:14]}  Nxc5 {[%clk 0:00:08]} 42. Qc2 {[%clk 0:00:11]}  Ne4 {[%clk 0:00:07]} 43. Qxc6 {[%clk 0:00:10]}  Bf8 {[%clk 0:00:05]} 44. Qxb5 {[%clk 0:00:10]}  Qg5 {[%clk 0:00:05]} 45. Qd3 {[%clk 0:00:10]}  Qg1 {[%clk 0:00:05]} 46. Bxe4 {[%clk 0:00:10]}  fxe4 {[%clk 0:00:06]} 47. Qg3+ {[%clk 0:00:10]}  Qxg3 {[%clk 0:00:05]} 48. fxg3 {[%clk 0:00:11]}  Kf7 {[%clk 0:00:05]} 49. Bc3 {[%clk 0:00:10]}  Bxa3 {[%clk 0:00:05]} 50. Bxa5 {[%clk 0:00:10]}  Kf6 {[%clk 0:00:05]} 51. Bd8+ {[%clk 0:00:09]}  Kf5 {[%clk 0:00:05]} 52. Bc7 {[%clk 0:00:09]}  Bf8 {[%clk 0:00:04]} 53. Bf4 {[%clk 0:00:09]}  Bg7 {[%clk 0:00:01]} 54. Ke3 {[%clk 0:00:09]}  Kg4 {[%clk 0:00:02]} 55. h6 {[%clk 0:00:08]}  Bh8 {[%clk 0:00:02]} 56. h7 {[%clk 0:00:09]}  Kf5 {[%clk 0:00:03]} 57. Be5 {[%clk 0:00:09]}  Kg6 {[%clk 0:00:01]} 58. Bxh8 {[%clk 0:00:10]}  Kxh7 {[%clk 0:00:02]} 59. Be5 {[%clk 0:00:10]}  Kg6 {[%clk 0:00:02]} 60. b4 {[%clk 0:00:11]}  Kf5 {[%clk 0:00:03]} 61. b5 {[%clk 0:00:12]} 1-0


[Site "https://www.chess.com"]

[Event "Titled Tuesday Blitz November 15 Early 2022"]
[White "Aumann, Welf"]
[Black "Winterberg, Lukas"]
[WhiteFideId "4634071"]
[BlackFideId "24622702"]
[WhiteElo "2283"]
[BlackElo "2349"]
[Result "1-0"]
[Round "08"]
[TimeControl "180+1"]
[Date "2022.11.16"]
[WhiteClock "0:00:09"]
[BlackClock "0:00:24"]

1. c4 {[%clk 0:03:00]}  g6 {[%clk 0:02:56]} 2. g3 {[%clk 0:03:01]}  Bg7 {[%clk 0:02:57]} 3. Bg2 {[%clk 0:03:01]}  Nf6 {[%clk 0:02:57]} 4. Nc3 {[%clk 0:03:02]}  O-O {[%clk 0:02:58]} 5. e3 {[%clk 0:03:02]}  c5 {[%clk 0:02:57]} 6. Nge2 {[%clk 0:03:02]}  Nc6 {[%clk 0:02:57]} 7. a3 {[%clk 0:03:02]}  Ne5 {[%clk 0:02:56]} 8. d3 {[%clk 0:03:00]}  e6 {[%clk 0:02:56]} 9. O-O {[%clk 0:02:53]}  d5 {[%clk 0:02:56]} 10. cxd5 {[%clk 0:02:52]}  exd5 {[%clk 0:02:57]} 11. d4 {[%clk 0:02:51]}  cxd4 {[%clk 0:02:53]} 12. exd4 {[%clk 0:02:51]}  Nc6 {[%clk 0:02:51]} 13. Bg5 {[%clk 0:02:43]}  Be6 {[%clk 0:02:42]} 14. Nf4 {[%clk 0:02:37]}  h6 {[%clk 0:02:42]} 15. Nxe6 {[%clk 0:02:32]}  fxe6 {[%clk 0:02:43]} 16. Be3 {[%clk 0:02:32]}  Rc8 {[%clk 0:02:36]} 17. h4 {[%clk 0:02:18]}  Na5 {[%clk 0:02:33]} 18. Bh3 {[%clk 0:02:14]}  Rc6 {[%clk 0:02:29]} 19. Qd3 {[%clk 0:02:11]}  Kh7 {[%clk 0:02:18]} 20. Rae1 {[%clk 0:02:01]}  Nc4 {[%clk 0:02:16]} 21. Bc1 {[%clk 0:02:01]}  Ne4 {[%clk 0:02:05]} 22. h5 {[%clk 0:01:46]}  Qf6 {[%clk 0:01:52]} 23. Nxe4 {[%clk 0:01:29]}  dxe4 {[%clk 0:01:53]} 24. Qxe4 {[%clk 0:01:18]}  e5 {[%clk 0:01:37]} 25. b3 {[%clk 0:01:00]}  Nd6 {[%clk 0:01:28]} 26. Qxe5 {[%clk 0:00:48]}  Qf7 {[%clk 0:01:24]} 27. Qe3 {[%clk 0:00:34]}  Nf5 {[%clk 0:01:18]} 28. hxg6+ {[%clk 0:00:31]}  Rxg6 {[%clk 0:01:16]} 29. Bxf5 {[%clk 0:00:28]}  Qxf5 {[%clk 0:01:17]} 30. Qe4 {[%clk 0:00:25]}  Qxe4 {[%clk 0:01:11]} 31. Rxe4 {[%clk 0:00:26]}  Rc6 {[%clk 0:01:05]} 32. Be3 {[%clk 0:00:25]}  Rc3 {[%clk 0:01:04]} 33. b4 {[%clk 0:00:23]}  Rxa3 {[%clk 0:01:04]} 34. Re7 {[%clk 0:00:24]}  b5 {[%clk 0:01:02]} 35. d5 {[%clk 0:00:24]}  Rd3 {[%clk 0:01:01]} 36. Ra1 {[%clk 0:00:15]}  Ra8 {[%clk 0:00:56]} 37. Raxa7 {[%clk 0:00:13]}  Rxa7 {[%clk 0:00:56]} 38. Bxa7 {[%clk 0:00:14]}  Rxd5 {[%clk 0:00:56]} 39. Bc5 {[%clk 0:00:14]}  Kg6 {[%clk 0:00:56]} 40. Rb7 {[%clk 0:00:14]}  Kf5 {[%clk 0:00:54]} 41. Rxb5 {[%clk 0:00:14]}  Bd4 {[%clk 0:00:51]} 42. Ra5 {[%clk 0:00:11]}  Bc3 {[%clk 0:00:43]} 43. Kg2 {[%clk 0:00:10]}  Kg6 {[%clk 0:00:39]} 44. Ra6+ {[%clk 0:00:09]}  Kh7 {[%clk 0:00:38]} 45. Rd6 {[%clk 0:00:10]}  Re5 {[%clk 0:00:37]} 46. Rd7+ {[%clk 0:00:09]}  Kg6 {[%clk 0:00:37]} 47. Bd4 {[%clk 0:00:09]}  Bxd4 {[%clk 0:00:35]} 48. Rxd4 {[%clk 0:00:10]}  Re2 {[%clk 0:00:35]} 49. Rd5 {[%clk 0:00:09]}  Rb2 {[%clk 0:00:35]} 50. b5 {[%clk 0:00:09]}  Kf6 {[%clk 0:00:35]} 51. Rc5 {[%clk 0:00:09]}  Kg6 {[%clk 0:00:35]} 52. g4 {[%clk 0:00:10]}  Rb3 {[%clk 0:00:36]} 53. f3 {[%clk 0:00:09]}  Kg7 {[%clk 0:00:35]} 54. Kg3 {[%clk 0:00:10]}  Kg6 {[%clk 0:00:36]} 55. Kf4 {[%clk 0:00:09]}  Rb4+ {[%clk 0:00:36]} 56. Ke5 {[%clk 0:00:09]}  Rb3 {[%clk 0:00:36]} 57. f4 {[%clk 0:00:09]}  Kg7 {[%clk 0:00:37]} 58. Kf5 {[%clk 0:00:09]}  Rb4 {[%clk 0:00:34]} 59. Rc7+ {[%clk 0:00:08]}  Kg8 {[%clk 0:00:34]} 60. Rb7 {[%clk 0:00:09]}  Kh8 {[%clk 0:00:33]} 61. Kg6 {[%clk 0:00:09]}  Rxf4 {[%clk 0:00:31]} 62. Rb8+ {[%clk 0:00:08]}  Rf8 {[%clk 0:00:24]} 63. Rxf8# {[%clk 0:00:09]} 1-0


[Site "https://www.chess.com"]

[Event "Titled Tuesday Blitz November 15 Early 2022"]
[White "Avazkhonov, Alikhon"]
[Black "Aponte Ramos, Argimiro"]
[WhiteFideId "14208504"]
[BlackFideId "3900568"]
[WhiteElo "1739"]
[BlackElo "2216"]
[Result "1-0"]
[Round "08"]
[TimeControl "180+1"]
[Date "2022.11.16"]
[WhiteClock "0:00:04"]
[BlackClock "0:00:02"]

1. d4 {[%clk 0:03:00]}  d5 {[%clk 0:02:58]} 2. c4 {[%clk 0:02:59]}  c6 {[%clk 0:02:59]} 3. Nc3 {[%clk 0:03:00]}  Nf6 {[%clk 0:02:58]} 4. Nf3 {[%clk 0:03:00]}  dxc4 {[%clk 0:02:57]} 5. a4 {[%clk 0:02:56]}  Bf5 {[%clk 0:02:57]} 6. Ne5 {[%clk 0:02:55]}  e6 {[%clk 0:02:56]} 7. f3 {[%clk 0:02:56]}  c5 {[%clk 0:02:55]} 8. e4 {[%clk 0:02:45]}  Bg6 {[%clk 0:02:55]} 9. Bxc4 {[%clk 0:02:33]}  Qxd4 {[%clk 0:02:43]} 10. Qxd4 {[%clk 0:02:27]}  cxd4 {[%clk 0:02:44]} 11. Nb5 {[%clk 0:02:27]}  Na6 {[%clk 0:02:31]} 12. Nxd4 {[%clk 0:01:53]}  Bb4+ {[%clk 0:02:02]} 13. Ke2 {[%clk 0:00:53]}  O-O {[%clk 0:01:54]} 14. Bxa6 {[%clk 0:00:52]}  bxa6 {[%clk 0:01:53]} 15. Ndc6 {[%clk 0:00:53]}  a5 {[%clk 0:01:40]} 16. Nxb4 {[%clk 0:00:44]}  axb4 {[%clk 0:01:41]} 17. a5 {[%clk 0:00:44]}  Rfc8 {[%clk 0:01:32]} 18. Bd2 {[%clk 0:00:38]}  Rc2 {[%clk 0:01:27]} 19. Nd3 {[%clk 0:00:36]}  Bxe4 {[%clk 0:00:48]} 20. fxe4 {[%clk 0:00:24]}  Nxe4 {[%clk 0:00:49]} 21. Rhd1 {[%clk 0:00:25]}  Rd8 {[%clk 0:00:42]} 22. Rac1 {[%clk 0:00:24]}  b3 {[%clk 0:00:24]} 23. Rxc2 {[%clk 0:00:08]}  bxc2 {[%clk 0:00:25]} 24. Rc1 {[%clk 0:00:09]}  Rc8 {[%clk 0:00:19]} 25. Nb4 {[%clk 0:00:08]}  Rb8 {[%clk 0:00:14]} 26. Rxc2 {[%clk 0:00:07]}  g5 {[%clk 0:00:12]} 27. Nc6 {[%clk 0:00:06]}  Rb7 {[%clk 0:00:10]} 28. a6 {[%clk 0:00:06]}  Rc7 {[%clk 0:00:08]} 29. Ba5 {[%clk 0:00:06]}  Rd7 {[%clk 0:00:08]} 30. Nb8 {[%clk 0:00:05]}  Re7 {[%clk 0:00:08]} 31. Rc8+ {[%clk 0:00:04]}  Kg7 {[%clk 0:00:08]} 32. Nc6 {[%clk 0:00:05]}  Rd7 {[%clk 0:00:07]} 33. Ne5 {[%clk 0:00:04]}  Rd5 {[%clk 0:00:06]} 34. Nc4 {[%clk 0:00:04]}  Nd6 {[%clk 0:00:06]} 35. Bc3+ {[%clk 0:00:04]}  Kg6 {[%clk 0:00:05]} 36. Nxd6 {[%clk 0:00:03]}  Rxd6 {[%clk 0:00:06]} 37. Rg8+ {[%clk 0:00:02]}  Kf5 {[%clk 0:00:06]} 38. g4+ {[%clk 0:00:02]}  Kxg4 {[%clk 0:00:05]} 39. Bf6 {[%clk 0:00:03]}  Rxa6 {[%clk 0:00:05]} 40. Rxg5+ {[%clk 0:00:03]}  Kf4 {[%clk 0:00:04]} 41. h4 {[%clk 0:00:03]}  Rb6 {[%clk 0:00:02]} 42. Be5+ {[%clk 0:00:03]}  Ke4 {[%clk 0:00:02]} 43. Bc3 {[%clk 0:00:04]} 1-0


[Site "https://www.chess.com"]

[Event "Titled Tuesday Blitz November 15 Early 2022"]
[White "Averjanov, Alexey"]
[Black "Galchenko, Matvey"]
[WhiteFideId "14109867"]
[BlackFideId "24175480"]
[WhiteElo "2629"]
[BlackElo "2403"]
[Result "0-1"]
[Round "08"]
[TimeControl "180+1"]
[Date "2022.11.16"]
[WhiteClock "0:01:57"]
[BlackClock "0:02:06"]

1. d4 {[%clk 0:03:00]}  Nf6 {[%clk 0:02:54]} 2. c4 {[%clk 0:03:00]}  c5 {[%clk 0:02:53]} 3. Nf3 {[%clk 0:02:59]}  cxd4 {[%clk 0:02:53]} 4. Nxd4 {[%clk 0:03:00]}  e5 {[%clk 0:02:54]} 5. Nb5 {[%clk 0:03:00]}  d5 {[%clk 0:02:54]} 6. cxd5 {[%clk 0:03:00]}  Bc5 {[%clk 0:02:55]} 7. N5c3 {[%clk 0:03:01]}  O-O {[%clk 0:02:55]} 8. g3 {[%clk 0:03:01]}  Ng4 {[%clk 0:02:55]} 9. e3 {[%clk 0:03:01]}  f5 {[%clk 0:02:56]} 10. Bg2 {[%clk 0:03:01]}  f4 {[%clk 0:02:56]} 11. O-O {[%clk 0:02:45]}  fxe3 {[%clk 0:02:55]} 12. fxe3 {[%clk 0:02:44]}  Rxf1+ {[%clk 0:02:49]} 13. Qxf1 {[%clk 0:02:44]}  Bxe3+ {[%clk 0:02:39]} 14. Bxe3 {[%clk 0:02:42]}  Nxe3 {[%clk 0:02:39]} 15. Qf3 {[%clk 0:02:41]}  Nc2 {[%clk 0:02:37]} 16. Nd2 {[%clk 0:02:23]}  Nxa1 {[%clk 0:02:34]} 17. Qd1 {[%clk 0:02:23]}  Qb6+ {[%clk 0:02:32]} 18. Kh1 {[%clk 0:02:23]}  Qxb2 {[%clk 0:02:29]} 19. Nde4 {[%clk 0:02:21]}  Bf5 {[%clk 0:02:22]} 20. d6 {[%clk 0:02:21]}  Nc6 {[%clk 0:02:20]} 21. Qd5+ {[%clk 0:02:16]}  Kh8 {[%clk 0:02:20]} 22. Ng5 {[%clk 0:02:16]}  Rf8 {[%clk 0:02:12]} 23. Nd1 {[%clk 0:01:57]}  Qd4 {[%clk 0:02:06]} 0-1


[Site "https://www.chess.com"]

[Event "Titled Tuesday Blitz November 15 Early 2022"]
[White "Barbashin, Igor"]
[Black "Avila Rodriguez, Joshua Ad"]
[WhiteFideId "4155718"]
[BlackFideId "5126444"]
[WhiteElo "2138"]
[BlackElo "2125"]
[Result "0-1"]
[Round "08"]
[TimeControl "180+1"]
[Date "2022.11.16"]
[WhiteClock "0:00:04"]
[BlackClock "0:00:08"]

1. d4 {[%clk 0:03:00]}  Nf6 {[%clk 0:02:59]} 2. c4 {[%clk 0:03:00]}  e6 {[%clk 0:02:59]} 3. Nc3 {[%clk 0:03:00]}  Bb4 {[%clk 0:02:57]} 4. Nf3 {[%clk 0:02:59]}  O-O {[%clk 0:02:57]} 5. g3 {[%clk 0:02:59]}  d5 {[%clk 0:02:56]} 6. Bg2 {[%clk 0:02:59]}  dxc4 {[%clk 0:02:57]} 7. O-O {[%clk 0:02:58]}  Nc6 {[%clk 0:02:57]} 8. e3 {[%clk 0:02:51]}  Rb8 {[%clk 0:02:56]} 9. Qc2 {[%clk 0:02:43]}  b5 {[%clk 0:02:51]} 10. a4 {[%clk 0:02:41]}  a6 {[%clk 0:02:51]} 11. Nd2 {[%clk 0:02:28]}  Ne7 {[%clk 0:02:28]} 12. Nde4 {[%clk 0:02:07]}  Nxe4 {[%clk 0:02:18]} 13. Nxe4 {[%clk 0:02:05]}  Bb7 {[%clk 0:02:18]} 14. b3 {[%clk 0:01:53]}  cxb3 {[%clk 0:01:56]} 15. Qxb3 {[%clk 0:01:50]}  Bd6 {[%clk 0:01:47]} 16. Nxd6 {[%clk 0:01:27]}  cxd6 {[%clk 0:01:45]} 17. e4 {[%clk 0:01:21]}  d5 {[%clk 0:01:43]} 18. Bf4 {[%clk 0:01:13]}  Rc8 {[%clk 0:01:42]} 19. axb5 {[%clk 0:01:10]}  axb5 {[%clk 0:01:42]} 20. Qxb5 {[%clk 0:01:07]}  Bc6 {[%clk 0:01:42]} 21. Qb4 {[%clk 0:00:42]}  dxe4 {[%clk 0:01:40]} 22. Bd6 {[%clk 0:00:37]}  Nd5 {[%clk 0:01:40]} 23. Qa3 {[%clk 0:00:33]}  Ra8 {[%clk 0:01:33]} 24. Qc5 {[%clk 0:00:29]}  Bb5 {[%clk 0:01:01]} 25. Rxa8 {[%clk 0:00:26]}  Qxa8 {[%clk 0:01:00]} 26. Qxb5 {[%clk 0:00:25]}  Rd8 {[%clk 0:00:57]} 27. Bc5 {[%clk 0:00:25]}  Nc3 {[%clk 0:00:55]} 28. Qb2 {[%clk 0:00:24]}  Na4 {[%clk 0:00:46]} 29. Qe2 {[%clk 0:00:23]}  f5 {[%clk 0:00:42]} 30. Ra1 {[%clk 0:00:20]}  Qc6 {[%clk 0:00:41]} 31. Qc4 {[%clk 0:00:18]}  Nb6 {[%clk 0:00:40]} 32. Qb3 {[%clk 0:00:16]}  Nd5 {[%clk 0:00:38]} 33. Bf1 {[%clk 0:00:16]}  h5 {[%clk 0:00:36]} 34. Bc4 {[%clk 0:00:15]}  h4 {[%clk 0:00:35]} 35. Ra6 {[%clk 0:00:12]}  Qe8 {[%clk 0:00:34]} 36. Qb7 {[%clk 0:00:10]}  Qh5 {[%clk 0:00:24]} 37. Ra7 {[%clk 0:00:09]}  Qg4 {[%clk 0:00:17]} 38. Qf7+ {[%clk 0:00:07]}  Kh8 {[%clk 0:00:14]} 39. Qxe6 {[%clk 0:00:06]}  h3 {[%clk 0:00:08]} 40. Bxd5 {[%clk 0:00:04]}  Qd1# {[%clk 0:00:08]} 0-1


[Site "https://www.chess.com"]